bitfinex-derivatives/quotes_SOLF0:USTF0_20250310
["timestamp","ask_amount","ask_price","bid_price","bid_amount"]
[1741612853621,7.8196,127.88,127.86,0.05004769]
[1741612853821,30.99812469,127.89,127.86,0.05004769]
[1741612854022,30.99812469,127.89,127.87,7.8202]
[1741612854329,30.99812469,127.89,127.86,0.05004769]
[1741612855029,7.8202,127.87,127.86,0.05004769]
[1741612855227,30.99812469,127.89,127.86,0.05004769]
[1741612855635,7.8199,127.88,127.86,0.05004769]
[1741612856428,7.8202,127.87,127.86,0.05004769]
[1741612858432,30.99812469,127.89,127.86,0.05004769]
[1741612859330,0.05812469,127.89,127.88,7.8196]
[1741612859635,0.05812469,127.89,127.86,0.05004769]
[1741612859829,0.05812469,127.89,127.88,7.8196]
[1741612861038,0.05812469,127.89,127.87,7.8201]
[1741612861531,0.05812469,127.89,127.86,62.05004769]
[1741612861929,23.66615408,127.87,127.86,0.05004769]
[1741612862235,25.3799099,127.87,127.81,192.0]
[1741612862423,7.8227,127.83,127.81,7.8236]
[1741612862623,7.8227,127.83,127.78,4.5286]
[1741612862836,30.94,127.86,127.78,35.4686]
[1741612863139,7.8223,127.84,127.81,7.8235]
[1741612863330,7.8223,127.84,127.78,35.4686]
[1741612863538,0.05123908,127.84,127.81,0.05224263]
[1741612864234,30.94,127.89,127.81,0.05224263]
[1741612864533,30.94,127.89,127.8,58.4081099]
[1741612864731,7.8187,127.9,127.87,7.82]
[1741612864933,56.3199099,127.92,127.83,92.94]
[1741612865327,0.05293515,127.89,127.83,30.94]
[1741612865526,30.94,127.88,127.86,0.05276254]
[1741612865835,7.8213,127.86,127.83,7.8224]
[1741612866135,7.8213,127.86,127.83,7.87996591]
[1741612866336,30.99344861,127.88,127.83,0.05756591]
[1741612866836,56.37335851,127.88,127.83,0.05756591]
[1741612867230,7.8221,127.84,127.83,0.05756591]
[1741612867535,38.7621,127.84,127.83,0.05756591]
[1741612868132,38.7621,127.84,127.78,4.5286]
[1741612868133,30.94,127.84,127.78,4.5286]
[1741612868332,56.3199099,127.84,127.75,64.211]
[1741612868534,56.3199099,127.84,127.79,7.825]
[1741612868730,30.94,127.84,127.77,25.3799099]
[1741612869033,30.94,127.84,127.77,56.3199099]
[1741612869434,0.05191398,127.82,127.79,0.05310866]
[1741612869736,0.05191398,127.82,127.81,7.8239]
[1741612870538,0.05191398,127.82,127.79,0.05310866]
[1741612870732,0.05191398,127.82,127.8,7.8243]
[1741612870934,0.05191398,127.82,127.79,0.05310866]
[1741612871135,0.05191398,127.82,127.81,7.8239]
[1741612871339,30.94,127.87,127.79,0.05310866]
[1741612871542,30.94,127.87,127.77,56.3199099]
[1741612871740,30.94,127.87,127.84,7.822]
[1741612871927,30.94,127.87,127.75,68.9207]
[1741612871928,30.94,127.87,127.8,30.94]
[1741612872127,30.94,127.87,127.79,25.3799099]
[1741612872128,30.94,127.87,127.86,7.8208]
[1741612872327,30.94,127.87,127.81,35.508]
[1741612872533,30.94,127.87,127.85,0.05866621]
[1741612872827,0.05149143,127.87,127.85,0.05866621]
[1741612873636,0.05149143,127.87,127.86,7.8208]
[1741612873941,0.05149143,127.87,127.85,0.05866621]
[1741612874526,7.8208,127.86,127.85,0.05866621]
[1741612874739,0.05149143,127.87,127.85,0.05866621]
[1741612875036,7.8208,127.86,127.85,0.05866621]
[1741612876040,0.05149143,127.87,127.78,2.353]
[1741612876228,25.3799099,127.86,127.78,2.353]
[1741612876432,7.8236,127.82,127.79,7.8248]
[1741612876934,30.94,127.85,127.78,2.353]
[1741612877139,0.05831601,127.82,127.8,7.8241]
[1741612877329,0.05831601,127.82,127.79,0.05723871]
[1741612877729,0.05831601,127.82,127.8,7.8241]
[1741612878437,0.05831601,127.82,127.81,7.8239]
[1741612879034,0.05831601,127.82,127.81,69.8239]
[1741612879838,30.94,127.85,127.81,62.0]
[1741612880644,30.94,127.85,127.84,7.8221]
[1741612881038,30.94,127.85,127.83,0.05850084]
[1741612883041,0.05432917,127.86,127.83,0.05850084]
[1741612883441,0.05432917,127.86,127.84,7.8221]
[1741612883643,0.05432917,127.86,127.83,0.05850084]
[1741612884248,7.8221,127.84,127.83,0.05850084]
[1741612884839,7.87542917,127.86,127.83,0.05850084]
[1741612885040,0.05432917,127.86,127.83,0.05850084]
[1741612885341,30.94,127.85,127.83,0.05850084]
[1741612885541,30.94,127.85,127.78,2.353]
[1741612885750,30.94,127.85,127.75,4.5918]
[1741612886040,25.3799099,127.84,127.75,4.5918]
[1741612886339,25.3799099,127.84,127.76,7.8269]
[1741612886543,35.1948,127.85,127.75,4.5918]
[1741612886544,7.8259,127.78,127.75,4.5918]
[1741612886944,7.8259,127.78,127.75,4.64778072]
[1741612887246,7.87679662,127.78,127.75,4.64778072]
[1741612887837,0.05089662,127.78,127.76,7.8269]
[1741612888042,0.05089662,127.78,127.75,0.05598072]
[1741612890741,0.05089662,127.78,127.76,7.8265]
[1741612891040,0.05089662,127.78,127.75,0.05598072]
[1741612891845,0.05089662,127.78,127.76,7.827]
[1741612892046,0.05089662,127.78,127.75,0.05598072]
[1741612892441,7.827,127.76,127.75,0.05598072]
[1741612892642,30.94,127.77,127.7,2.1414]
[1741612893042,30.94,127.77,127.73,7.8288]
[1741612893437,30.94,127.77,127.7,2.1414]
[1741612893844,0.0528329,127.75,127.72,0.05764963]
[1741612894647,0.0528329,127.75,127.74,7.8282]
[1741612894848,0.0528329,127.75,127.72,0.05764963]
[1741612895042,7.8807329,127.75,127.73,7.8286]
[1741612895247,0.0528329,127.75,127.72,0.05764963]
[1741612895451,7.8288,127.73,127.72,0.05764963]
[1741612895850,56.3399099,127.74,127.66,2.3619]
[1741612896147,7.831,127.7,127.67,7.8321]
[1741612896343,30.94,127.71,127.66,2.3619]
[1741612896943,0.05397936,127.7,127.67,0.0522739]
[1741612898045,0.05397936,127.7,127.69,7.8313]
[1741612898845,289.12,127.76,127.67,0.0522739]
[1741612899051,258.16,127.76,127.67,25.3799099]
[1741612899344,56.3399099,127.82,127.71,25.3799099]
[1741612899538,56.3399099,127.82,127.72,37.8141]
[1741612899940,7.8251,127.79,127.76,7.8266]
[1741612900140,0.05614388,127.78,127.76,0.05243947]
[1741612900541,0.05614388,127.78,127.76,7.87923947]
[1741612902447,0.05614388,127.78,127.66,217.3799099]
[1741612902648,56.3399099,127.79,127.69,4.6964]
[1741612902951,7.8274,127.76,127.69,4.6964]
[1741612903249,56.3399099,127.79,127.69,4.6964]
[1741612903453,7.8282,127.74,127.69,4.6964]
[1741612903754,7.8282,127.74,127.73,0.05108754]
[1741612903949,7.8295,127.72,127.69,12.5276]
[1741612904150,30.96,127.76,127.72,0.05640255]
[1741612904353,0.05036878,127.72,127.69,4.6964]
[1741612904541,7.8286,127.74,127.7,7.8303]
[1741612904748,0.05849508,127.72,127.7,7.8303]
[1741612904949,0.05849508,127.72,127.69,4.75166718]
[1741612905247,0.05849508,127.72,127.71,7.83]
[1741612905954,0.05849508,127.72,127.7,7.8304]
[1741612906156,0.05849508,127.72,127.69,0.05526718]
[1741612906648,0.05849508,127.72,127.7,7.8306]
[1741612906855,0.05849508,127.72,127.69,0.05526718]
[1741612907050,0.05849508,127.72,127.71,7.83]
[1741612907249,0.05849508,127.72,127.69,0.05526718]
[1741612907657,0.05849508,127.72,127.69,7.88626718]
[1741612907843,0.05849508,127.72,127.69,0.05526718]
[1741612908458,7.8306,127.7,127.69,0.05526718]
[1741612908753,0.05849508,127.72,127.69,7.88646718]
[1741612909256,0.05849508,127.72,127.69,0.05526718]
[1741612909752,7.8306,127.7,127.69,0.05526718]
[1741612909951,0.05849508,127.72,127.69,0.05526718]
[1741612910648,25.3799099,127.71,127.59,100.14251704]
[1741612910853,25.3799099,127.69,127.6,8.28275843]
[1741612911047,25.3799099,127.67,127.6,6.8676]
[1741612911254,25.3799099,127.65,127.55,30.96]
[1741612911458,25.3799099,127.65,127.56,1.4155814]
[1741612911750,25.3799099,127.65,127.55,6.8676]
[1741612911956,0.05765156,127.62,127.59,0.05531296]
[1741612912160,7.8372,127.6,127.56,7.8391]
[1741612912555,30.96,127.61,127.55,6.8676]
[1741612912760,38.7967,127.61,127.57,7.8383]
[1741612913157,38.7967,127.61,127.55,6.8676]
[1741612913459,0.06002222,127.6,127.58,0.05662328]
[1741612915261,0.06002222,127.6,127.58,7.89452328]
[1741612915560,0.06002222,127.6,127.58,0.05662328]
[1741612916955,0.06002222,127.6,127.58,7.89422328]
[1741612918665,0.06002222,127.6,127.59,7.8374]
[1741612919668,0.06002222,127.6,127.58,0.05662328]
[1741612919962,25.3799099,127.59,127.53,62.0]
[1741612920162,25.3799099,127.59,127.44,572.8599099]
[1741612920163,25.3799099,127.56,127.48,2.2502]
[1741612920463,30.98,127.55,127.49,30.98]
[1741612920672,289.46,127.58,127.5,25.3799099]
[1741612920884,30.98,127.61,127.52,25.3799099]
[1741612921177,2.3692,127.66,127.56,25.3799099]
[1741612921375,33.2952,127.68,127.58,25.3799099]
[1741612921577,0.05283646,127.62,127.6,25.3799099]
[1741612921773,30.98,127.68,127.64,7.834]
[1741612921968,30.98,127.68,127.61,2.2958]
[1741612922171,30.98,127.68,127.61,33.2758]
[1741612922973,0.05680027,127.66,127.63,0.05039719]
[1741612923475,0.05680027,127.66,127.64,7.8339]
[1741612923678,0.05680027,127.66,127.63,0.05039719]
[1741612924481,0.05680027,127.66,127.64,7.8343]
[1741612924682,0.05680027,127.66,127.63,0.05039719]
[1741612926284,30.98,127.72,127.67,7.8321]
[1741612926675,27.3603099,127.75,127.64,58.7195099]
[1741612926676,30.98,127.75,127.64,58.7195099]
[1741612926877,30.98,127.75,127.69,7.8307]
[1741612927478,0.0553852,127.73,127.71,0.05738501]
[1741612928984,0.0553852,127.73,127.71,2.41738501]
[1741612929581,0.0553852,127.73,127.71,10.24698501]
[1741612929782,0.0553852,127.73,127.71,2.41738501]
[1741612929978,30.98,127.79,127.74,7.8281]
[1741612930186,2.3504,127.81,127.73,30.98]
[1741612931181,7.8784317,127.78,127.76,0.05317075]
[1741612931681,0.0521317,127.78,127.76,0.05317075]
[1741612931878,10.49534677,127.83,127.76,31.03317075]
[1741612932074,30.98,127.84,127.76,31.03317075]
[1741612932386,56.3599099,127.84,127.76,30.98]
[1741612932882,7.8246,127.8,127.76,100.8068]
[1741612933090,7.8246,127.8,127.79,0.06008972]
[1741612933587,7.87625271,127.81,127.79,0.06008972]
[1741612934589,0.05215271,127.81,127.79,0.06008972]
[1741612934793,30.96,127.87,127.79,31.02008972]
[1741612934986,7.8212,127.86,127.82,7.8229]
[1741612935190,7.8212,127.86,127.8,2.3216]
[1741612935687,289.38,127.89,127.8,2.3216]
[1741612935881,25.3799099,127.88,127.8,2.3216]
[1741612936090,7.8221,127.84,127.83,0.05553145]
[1741612936486,31.01749166,127.86,127.83,0.05553145]
[1741612936890,0.05749166,127.86,127.83,0.05553145]
[1741612937892,7.8219,127.85,127.83,0.05553145]
[1741612939097,7.8221,127.84,127.83,0.05553145]
[1741612939797,0.05749166,127.86,127.83,0.05553145]
[1741612939990,7.8217,127.85,127.83,0.05553145]
[1741612941397,0.05749166,127.86,127.83,0.05553145]
[1741612941398,7.87859166,127.86,127.83,0.05553145]
[1741612941597,7.87859166,127.86,127.83,7.87783145]
[1741612942200,0.05749166,127.86,127.83,0.05553145]
[1741612942586,0.05749166,127.86,127.84,7.8221]
[1741612943095,0.05749166,127.86,127.84,7.8217]
[1741612943393,0.05749166,127.86,127.83,0.05553145]
[1741612944197,0.05749166,127.86,127.83,7.87793145]
[1741612944994,0.05749166,127.86,127.83,0.05553145]
[1741612945189,0.05749166,127.86,127.84,7.8221]
[1741612945898,7.87839166,127.86,127.83,7.87793145]
[1741612946090,0.05749166,127.86,127.83,0.05553145]
[1741612946493,0.05749166,127.86,127.84,7.8218]
[1741612946997,7.87839166,127.86,127.83,7.87793145]
[1741612947197,0.05749166,127.86,127.83,0.05553145]
[1741612948204,7.8221,127.84,127.83,0.05553145]
[1741612949698,38.7621,127.84,127.8,2.3216]
[1741612949902,7.8245,127.81,127.78,7.8254]
[1741612950100,30.94,127.84,127.77,2.2175]
[1741612950593,30.94,127.84,127.79,7.8248]
[1741612950999,7.824,127.81,127.8,0.06024115]
[1741612951396,38.744,127.81,127.8,0.06024115]
[1741612951603,7.8264,127.77,127.75,4.5663]
[1741612951902,30.92,127.81,127.75,4.5663]
[1741612952397,7.825,127.8,127.75,12.3936]
[1741612952597,30.92,127.81,127.75,4.5663]
[1741612952804,0.05665215,127.79,127.76,0.05334497]
[1741612952996,7.8263,127.78,127.76,0.05334497]
[1741612954802,7.8264,127.77,127.76,0.05334497]
[1741612955401,7.826,127.78,127.76,0.05334497]
[1741612955803,0.05665215,127.79,127.76,0.05334497]
[1741612957001,56.3199099,127.78,127.76,0.05334497]
[1741612957201,56.3199099,127.78,127.76,0.00544998]
[1741612958006,7.8264,127.77,127.76,0.00544998]
[1741612958209,30.94,127.78,127.76,0.00544998]
[1741612958809,7.8264,127.77,127.76,0.00544998]
[1741612960316,38.7661,127.78,127.76,0.00544998]
[1741612960503,30.94,127.78,127.76,0.00544998]
[1741612961000,7.8264,127.77,127.76,0.00544998]
[1741612961598,7.8284,127.74,127.72,62.0]
[1741612962699,0.05936445,127.74,127.72,62.05160215]
[1741612963810,7.88806445,127.74,127.72,62.05160215]
[1741612964013,0.05936445,127.74,127.72,62.05160215]
[1741612965813,7.88756445,127.74,127.72,62.05160215]
[1741612966818,0.05936445,127.74,127.72,62.05160215]
[1741612967311,7.88786445,127.74,127.72,0.05160215]
[1741612967507,0.05936445,127.74,127.72,0.05160215]
[1741612969912,15.9473594,127.74,127.72,0.05160215]
[1741612970519,0.05936445,127.74,127.72,0.05160215]
[1741612971418,7.8288,127.73,127.72,0.05160215]
[1741612973214,7.88796445,127.74,127.72,0.05160215]
[1741612974024,7.8288,127.73,127.72,0.05160215]
[1741612974518,0.05936445,127.74,127.72,0.05160215]
[1741612975122,30.94,127.81,127.73,15.88799495]
[1741612975317,23.71179495,127.82,127.73,20.38139495]
[1741612975523,30.94,127.81,127.78,7.8254]
[1741612976026,38.764,127.81,127.78,7.8254]
[1741612976219,30.94,127.82,127.79,7.8251]
[1741612976414,0.05103967,127.81,127.79,7.8251]
[1741612976611,7.87503967,127.81,127.78,0.05080755]
[1741612976816,7.87503967,127.81,127.78,7.87630755]
[1741612977522,7.8246,127.8,127.78,0.05080755]
[1741612978121,7.8251,127.79,127.78,0.05080755]
[1741612978322,0.05103967,127.81,127.78,0.05080755]
[1741612978723,7.87523967,127.81,127.78,7.87640755]
[1741612979314,0.05103967,127.81,127.79,7.8248]
[1741612980422,30.94,127.89,127.8,30.94]
[1741612980621,30.94,127.89,127.83,15.88799495]
[1741612981021,30.94,127.89,127.86,7.8205]
[1741612981624,30.99122598,127.89,127.86,7.874493]
[1741612982221,30.99122598,127.89,127.87,7.8202]
[1741612982826,0.05122598,127.89,127.88,7.8196]
[1741612983413,0.05122598,127.89,127.88,62.0]
[1741612983619,0.05122598,127.89,127.88,69.8196]
[1741612983822,23.70289495,127.96,127.88,62.0]
[1741612984020,30.92,127.95,127.88,62.0]
[1741612984520,38.7357,127.95,127.88,62.0]
[1741612985023,0.05720694,127.93,127.9,0.05958516]
[1741612985725,30.92,127.92,127.9,0.05958516]
[1741612987921,0.05720694,127.93,127.9,0.05958516]
[1741612988414,2.0703,128.0,127.9,0.05958516]
[1741612988415,30.92,127.97,127.9,0.05958516]
[1741612988620,30.92,127.97,127.89,56.26010462]
[1741612988825,30.92,127.97,127.92,7.8168]
[1741612989029,30.92,127.97,127.89,56.26010462]
[1741612989230,30.9,127.98,127.89,56.26010462]
[1741612989430,38.7126,128.0,127.94,7.8154]
[1741612989635,0.05104929,127.95,127.94,7.8154]
[1741612989821,38.7126,128.0,127.96,0.051758]
[1741612989822,0.0557774,127.98,127.96,0.051758]
[1741612990026,0.0557774,127.98,127.94,7.8154]
[1741612990222,0.0557774,127.98,127.95,0.04963223]
[1741612993031,7.8696774,127.98,127.95,0.04963223]
[1741612993331,0.0557774,127.98,127.95,0.04963223]
[1741612994429,7.8695774,127.98,127.95,0.04963223]
[1741612994630,0.0557774,127.98,127.95,0.04963223]
[1741612996835,7.8147,127.96,127.95,0.04963223]
[1741612997231,0.0557774,127.98,127.95,0.04963223]
[1741612997933,7.8147,127.96,127.95,0.04963223]
[1741612998541,38.6947,127.96,127.95,0.04963223]
[1741612999733,7.8178,127.91,127.9,2.1503]
[1741613000032,30.88,127.96,127.88,69.8193]
[1741613000234,7.8187,127.9,127.88,62.0]
[1741613000534,30.88,127.93,127.87,4.5532]
[1741613000933,0.05677165,127.9,127.88,0.0538523]
[1741613002439,7.819,127.89,127.88,0.0538523]
[1741613007839,7.8226,127.84,127.8,15.84485562]
[1741613008037,7.8226,127.84,127.8,17.98645562]
[1741613008236,7.8226,127.84,127.81,7.8236]
[1741613008435,30.88,127.87,127.8,2.1416]
[1741613008837,7.8217,127.85,127.8,17.98645562]
[1741613009032,7.87706112,127.85,127.82,0.05164435]
[1741613009231,0.05536112,127.85,127.82,15.89649997]
[1741613009635,30.88,127.9,127.82,15.89649997]
[1741613009936,7.8199,127.88,127.85,7.8212]
[1741613010443,7.8199,127.88,127.85,7.8214]
[1741613010843,7.87648017,127.88,127.85,7.87385711]
[1741613011144,7.87648017,127.88,127.85,0.05245711]
[1741613011444,7.8205,127.87,127.85,0.05245711]
[1741613013043,7.8205,127.87,127.85,7.87355711]
[1741613013240,7.8208,127.86,127.85,0.05245711]
[1741613014143,38.7008,127.86,127.85,0.05245711]
[1741613016543,38.7008,127.86,127.85,5.711e-05]
[1741613018339,7.8247,127.8,127.76,2.2337]
[1741613018948,7.8247,127.8,127.77,7.8259]
[1741613019452,7.88217031,127.8,127.77,7.88417525]
[1741613019750,7.8251,127.79,127.77,7.88417525]
[1741613019941,0.05747031,127.8,127.77,0.05827525]
[1741613020136,0.05747031,127.8,127.78,7.8257]
[1741613020548,0.05747031,127.8,127.77,0.05827525]
[1741613020950,7.8251,127.79,127.77,0.05827525]
[1741613021742,0.05747031,127.8,127.77,0.05827525]
[1741613021958,0.05747031,127.8,127.78,7.8251]
[1741613022147,0.05747031,127.8,127.77,0.05827525]
[1741613022946,0.05747031,127.8,127.77,25.41843492]
[1741613023354,30.88,127.82,127.77,87.41843492]
[1741613023553,262.4137,127.88,127.77,87.41843492]
[1741613023750,38.7207,127.87,127.79,25.36015967]
[1741613023949,30.9,127.87,127.81,25.36015967]
[1741613024149,30.9,127.9,127.82,2.1767]
[1741613024453,7.8203,127.87,127.84,7.8217]
[1741613024748,7.87695723,127.87,127.85,0.05327529]
[1741613025656,7.8208,127.86,127.85,0.05327529]
[1741613026248,0.05665723,127.87,127.85,0.05327529]
[1741613026954,7.8208,127.86,127.85,0.05327529]
[1741613027152,0.05665723,127.87,127.85,0.05327529]
[1741613027358,7.87735723,127.87,127.85,0.05327529]
[1741613027857,0.05665723,127.87,127.85,0.05327529]
[1741613028053,7.8208,127.86,127.85,0.05327529]
[1741613029160,56.2968169,127.87,127.78,30.88]
[1741613029360,7.824,127.81,127.78,38.7055]
[1741613029551,30.88,127.84,127.78,30.88]
[1741613030251,7.8237,127.82,127.79,7.8247]
[1741613030456,0.06011514,127.82,127.8,0.05462136]
[1741613031454,7.88401514,127.82,127.8,0.05462136]
[1741613031659,0.06011514,127.82,127.8,0.05462136]
[1741613032047,0.06011514,127.82,127.81,7.8239]
[1741613034867,0.06011514,127.82,127.8,7.87862136]
[1741613035258,0.06011514,127.82,127.8,0.05462136]
[1741613035660,7.88371514,127.82,127.8,0.05462136]
[1741613036558,7.88351514,127.82,127.8,0.05462136]
[1741613036963,0.06011514,127.82,127.8,0.05462136]
[1741613037464,0.06011514,127.82,127.81,7.8239]
[1741613037861,27.55865967,127.9,127.8,0.05462136]
[1741613038065,30.88,127.89,127.79,56.24015967]
[1741613038368,27.55865967,127.9,127.79,56.24015967]
[1741613038369,10.49534677,127.92,127.83,25.36015967]
[1741613038571,41.37534677,127.92,127.87,7.8198]
[1741613038769,41.37534677,127.92,127.84,4.6422]
[1741613039071,30.88,127.91,127.87,0.05142338]
[1741613039263,0.05766801,127.89,127.87,0.05142338]
[1741613040171,7.8196,127.88,127.87,0.05142338]
[1741613040370,38.6996,127.88,127.87,0.05142338]
[1741613044075,38.6996,127.88,127.87,2.338e-05]
[1741613044468,43.2832,127.88,127.87,2.338e-05]
[1741613044666,45.5605,127.88,127.87,2.338e-05]
[1741613044871,7.8244,127.81,127.79,4.6422]
[1741613045176,30.88,127.85,127.79,4.6422]
[1741613045970,30.88,127.85,127.79,12.467]
[1741613046173,0.05452053,127.83,127.81,0.06008533]
[1741613046577,7.8233,127.82,127.81,0.06008533]
[1741613048573,30.88,127.82,127.75,4.3961]
[1741613049573,258.06,127.84,127.75,4.3961]
[1741613049775,0.05659017,127.8,127.77,0.05780515]
[1741613050377,30.88,127.87,127.78,56.24015967]
[1741613050974,7.8212,127.86,127.78,56.24015967]
[1741613051171,30.88,127.87,127.78,56.24015967]
[1741613051480,7.8228,127.83,127.81,0.05003793]
[1741613051670,0.05470687,127.84,127.81,0.05003793]
[1741613052670,0.05470687,127.84,127.83,7.8227]
[1741613054886,0.05470687,127.84,127.82,4.4989]
[1741613055180,0.05470687,127.84,127.81,0.05003793]
[1741613055379,7.8227,127.83,127.81,0.05003793]
[1741613055971,0.05470687,127.84,127.81,0.05003793]
[1741613056584,7.823,127.83,127.81,0.05003793]
[1741613057083,0.05470687,127.84,127.81,0.05003793]
[1741613057685,7.8231,127.83,127.81,0.05003793]
[1741613058276,0.05470687,127.84,127.81,0.05003793]
[1741613059376,30.88,127.83,127.81,0.05003793]
[1741613059984,30.88,127.83,127.73,30.88]
[1741613060487,7.826,127.78,127.74,7.8278]
[1741613060692,7.826,127.78,127.73,30.88]
[1741613061388,0.05897217,127.77,127.74,0.0558477]
[1741613062588,0.05897217,127.77,127.75,7.8272]
[1741613062783,0.05897217,127.77,127.74,0.0558477]
[1741613063777,0.05897217,127.77,127.75,7.8273]
[1741613065291,0.05897217,127.77,127.76,7.827]
[1741613067392,7.88557217,127.77,127.74,7.8837477]
[1741613067689,0.05897217,127.77,127.74,0.0558477]
[1741613067890,0.05897217,127.77,127.75,7.8272]
[1741613068488,7.88557217,127.77,127.75,7.8276]
[1741613068691,7.88557217,127.77,127.74,0.0558477]
[1741613068989,0.05897217,127.77,127.74,0.0558477]
[1741613069191,0.05897217,127.77,127.74,62.0558477]
[1741613069585,0.05897217,127.77,127.75,7.8273]
[1741613069790,0.05897217,127.77,127.74,0.0558477]
[1741613069986,0.05897217,127.77,127.75,7.8271]
[1741613070187,0.05897217,127.77,127.74,0.0558477]
[1741613070898,0.05897217,127.77,127.75,7.8276]
[1741613071197,0.05897217,127.77,127.74,0.0558477]
[1741613071392,0.05897217,127.77,127.76,7.827]
[1741613071893,18.15161796,127.84,127.75,15.87271796]
[1741613072091,30.88,127.83,127.79,7.8249]
[1741613072292,30.88,127.83,127.75,15.87271796]
[1741613072293,7.8236,127.82,127.76,30.88]
[1741613072589,49.03161796,127.84,127.76,92.88]
[1741613073090,0.059344,127.81,127.79,0.05385919]
[1741613073795,0.059344,127.81,127.79,7.87855919]
[1741613074193,0.059344,127.81,127.79,0.05385919]
[1741613074497,7.883644,127.81,127.79,0.05385919]
[1741613075000,7.883644,127.81,127.79,7.87895919]
[1741613075192,7.883644,127.81,127.79,0.05385919]
[1741613075593,7.8245,127.8,127.79,0.05385919]
[1741613075994,0.059344,127.81,127.79,0.05385919]
[1741613076594,7.883544,127.81,127.79,0.05385919]
[1741613076790,0.059344,127.81,127.79,0.05385919]
[1741613077697,7.8245,127.8,127.79,0.05385919]
[1741613079099,30.939344,127.81,127.79,0.05385919]
[1741613079797,7.8245,127.8,127.79,0.05385919]
[1741613080096,30.939344,127.81,127.79,0.05385919]
[1741613080297,30.939344,127.81,127.79,7.87855919]
[1741613080601,30.939344,127.81,127.79,0.05385919]
[1741613081001,7.8245,127.8,127.79,0.05385919]
[1741613082800,19.79271796,127.8,127.71,4.5335]
[1741613083100,20.24191796,127.8,127.71,20.40621796]
[1741613083402,15.87271796,127.78,127.71,4.5335]
[1741613083697,30.88,127.77,127.69,2.3696]
[1741613083897,7.8289,127.73,127.69,2.3696]
[1741613084097,15.87271796,127.76,127.72,0.0518802]
[1741613084707,7.8288,127.73,127.72,0.0518802]
[1741613085400,38.7084,127.74,127.72,0.0518802]
[1741613086303,0.05520595,127.75,127.72,0.0518802]
[1741613086498,0.05520595,127.75,127.74,7.8282]
[1741613086696,0.05520595,127.75,127.72,0.0518802]
[1741613087101,0.05520595,127.75,127.73,7.8285]
[1741613087297,7.88280595,127.75,127.72,0.0518802]
[1741613087496,0.05520595,127.75,127.72,0.0518802]
[1741613087898,0.05520595,127.75,127.73,7.8285]
[1741613088094,0.05520595,127.75,127.72,0.0518802]
[1741613088506,0.05520595,127.75,127.73,7.8282]
[1741613088703,0.05520595,127.75,127.72,0.0518802]
[1741613089503,0.05520595,127.75,127.74,7.8282]
[1741613090698,0.05520595,127.75,127.73,10.1489]
[1741613091103,0.05520595,127.75,127.72,0.0518802]
[1741613091905,7.8288,127.73,127.72,0.0518802]
[1741613092315,7.8285,127.74,127.72,0.0518802]
[1741613092912,7.8288,127.73,127.72,0.0518802]
[1741613093308,0.05520595,127.75,127.72,0.0518802]
[1741613093501,7.8288,127.73,127.72,0.0518802]
[1741613093908,30.88,127.74,127.72,0.0518802]
[1741613094105,0.05520595,127.75,127.72,0.0518802]
[1741613094302,0.05520595,127.75,127.74,7.8282]
[1741613094507,7.8256,127.79,127.73,15.87271796]
[1741613094813,7.8256,127.79,127.73,48.97961796]
[1741613095111,7.8259,127.78,127.73,48.97961796]
[1741613095303,30.88,127.81,127.73,40.9354]
[1741613095506,15.87271796,127.8,127.73,33.1069]
[1741613095708,0.05450104,127.78,127.76,0.05763564]
[1741613097110,0.05450104,127.78,127.76,7.88413564]
[1741613097411,0.05450104,127.78,127.76,0.05763564]
[1741613098315,7.88050104,127.78,127.76,0.05763564]
[1741613100118,7.8264,127.77,127.76,0.05763564]
[1741613100319,30.88,127.77,127.68,33.2004]
[1741613100510,30.88,127.77,127.71,15.87271796]
[1741613100713,30.88,127.81,127.73,15.87271796]
[1741613100915,46.75271796,127.81,127.72,35.4834]
[1741613101719,0.05045369,127.78,127.75,0.05373741]
[1741613101918,0.05045369,127.78,127.77,7.8264]
[1741613102121,0.05045369,127.78,127.75,0.05373741]
[1741613102519,30.94,127.77,127.75,0.05373741]
[1741613102722,7.827,127.76,127.75,0.05373741]
[1741613102920,30.94,127.77,127.75,0.05373741]
[1741613103326,30.94,127.77,127.75,62.05373741]